bitfinex/quotes_SOLUSD_20260211
["timestamp","ask_amount","ask_price","bid_price","bid_amount"]
[1770818067238,1.64094312,81.238,81.21,4.66368955]
[1770818067439,12.31163202,81.224,81.21,4.66368955]
[1770818067639,43.09071209,81.224,81.2,4.66368955]
[1770818068355,12.31163202,81.224,81.21,4.66368955]
[1770818068538,51.78,81.223,81.21,4.66368955]
[1770818068738,51.78,81.223,81.2,4.66368955]
[1770818069045,51.78,81.222,81.2,12.4955942]
[1770818069247,1.64094312,81.221,81.2,12.4955942]
[1770818069449,1.64094312,81.219,81.19,12.4955942]
[1770818069862,1.64094312,81.234,81.21,12.4955942]
[1770818071441,43.08593797,81.233,81.21,12.4955942]
[1770818071840,1.64094312,81.232,81.21,12.4955942]
[1770818072944,1.64094312,81.232,81.2,12.4955942]
[1770818073262,1.64094312,81.23,81.2,12.4955942]
[1770818073957,1.64094312,81.228,81.2,12.4955942]
[1770818075352,1.64094312,81.226,81.2,12.4955942]
[1770818075550,1.64094312,81.226,81.21,12.4955942]
[1770818075762,12.31163202,81.224,81.2,12.4955942]
[1770818076073,1.64094312,81.223,81.2,12.4955942]
[1770818077257,1.64094312,81.221,81.2,12.4955942]
[1770818077957,12.31223836,81.22,81.2,12.4955942]
[1770818078165,1.64094312,81.219,81.2,12.4955942]
[1770818078760,1.64094312,81.219,81.21,12.4955942]
[1770818078943,1.64094312,81.219,81.2,12.4955942]
[1770818079374,52.02,81.222,81.21,12.4955942]
[1770818079663,12.31011645,81.234,81.211,1.65562436]
[1770818079854,12.31011645,81.234,81.22,12.4955942]
[1770818080667,12.31011645,81.234,81.211,1.65562436]
[1770818081046,1.64094312,81.233,81.21,12.4955942]
[1770818083661,13.95136265,81.232,81.21,12.4955942]
[1770818084047,1.64094312,81.231,81.21,12.4955942]
[1770818086868,12.31072263,81.23,81.21,12.49243483]
[1770818087173,1.64094312,81.229,81.21,12.49243483]
[1770818087359,1.64094312,81.229,81.2,12.49243483]
[1770818088372,12.31072263,81.23,81.21,14.14805919]
[1770818089268,12.31011645,81.234,81.21,14.14805919]
[1770818090175,1.64094312,81.268,81.221,1.65562436]
[1770818090375,41.83149643,81.273,81.25,12.49243483]
[1770818090560,1.65149643,81.272,81.25,12.49243483]
[1770818090960,1.65149643,81.272,81.25,4.65854351]
[1770818091262,43.06579222,81.271,81.25,4.65854351]
[1770818091460,1.65149643,81.27,81.24,4.65854351]
[1770818091662,1.65149643,81.269,81.24,4.65854351]
[1770818092065,1.65149643,81.269,81.25,4.65854351]
[1770818092476,1.65149643,81.267,81.24,4.65854351]
[1770818092789,1.65149643,81.265,81.24,4.65854351]
[1770818092975,52.26,81.266,81.25,4.65854351]
[1770818093157,12.30363746,81.277,81.26,4.65854351]
[1770818093470,64.58299824,81.281,81.26,4.65854351]
[1770818094373,12.30299824,81.281,81.26,4.65854351]
[1770818094879,12.30299824,81.281,81.26,12.47595872]
[1770818096978,12.30299824,81.281,81.27,12.47595872]
[1770818097182,12.30299824,81.281,81.261,1.6469967]
[1770818098177,1.65149643,81.288,81.26,12.47595872]
[1770818100364,1.65149643,81.286,81.251,1.6469967]
[1770818100566,1.65149643,81.286,81.26,12.47595872]
[1770818100867,0.2,81.29,81.27,12.47595872]
[1770818101168,1.65149643,81.318,81.281,1.6469967]
[1770818101369,1.65149643,81.318,81.3,12.47595872]
[1770818101566,12.2972491,81.319,81.3,12.47595872]
[1770818101763,12.29662038,81.324,81.3,12.47595872]
[1770818101969,52.38,81.334,81.279,40.58]
[1770818101970,12.29592229,81.328,81.31,12.47595872]
[1770818102188,1.65149643,81.329,81.293,1.6469967]
[1770818102365,12.47595872,81.33,81.293,1.6469967]
[1770818102366,1.65149643,81.327,81.293,1.6469967]
[1770818102780,1.65149643,81.327,81.3,12.47595872]
[1770818102986,1.65149643,81.327,81.301,1.6469967]
[1770818104578,1.65149643,81.337,81.31,12.47595872]
[1770818104782,13.94602413,81.337,81.31,12.47595872]
[1770818104989,1.65149643,81.336,81.31,12.47595872]
[1770818105372,1.65149643,81.336,81.31,14.12295542]
[1770818105575,30.73506898,81.341,81.301,12.29984509]
[1770818105576,1.8135313,81.364,81.33,12.47595872]
[1770818105790,1.8135313,81.364,81.34,12.47595872]
[1770818106087,1.8135313,81.364,81.35,12.47595872]
[1770818106390,1.8135313,81.364,81.34,12.47595872]
[1770818106596,1.8135313,81.364,81.35,12.47595872]
[1770818106891,0.2,81.37,81.35,12.47595872]
[1770818107072,0.2,81.37,81.36,12.47595872]
[1770818107272,0.2,81.37,81.346,40.56]
[1770818107477,12.48963283,81.37,81.346,40.56]
[1770818107676,1.8135313,81.369,81.34,12.47595872]
[1770818107880,1.8135313,81.359,81.321,40.56]
[1770818108082,1.8135313,81.359,81.324,12.29639774]
[1770818108281,1.8135313,81.359,81.33,12.47595872]
[1770818108697,12.29135426,81.358,81.33,12.47595872]
[1770818109088,14.10488556,81.358,81.33,12.47595872]
[1770818109284,1.8135313,81.357,81.33,12.47595872]
[1770818110480,1.8135313,81.349,81.325,40.58]
[1770818110680,12.29286522,81.348,81.311,12.298459]
[1770818110881,1.8135313,81.347,81.312,40.58]
[1770818111081,1.8135313,81.347,81.32,12.47595872]
[1770818111891,1.8135313,81.369,81.34,12.47595872]
[1770818112215,1.8135313,81.368,81.33,12.47595872]
[1770818112577,1.8135313,81.359,81.315,0.02150206]
[1770818112773,1.8135313,81.359,81.32,12.47595872]
[1770818113514,1.8135313,81.357,81.33,12.47595872]
[1770818115395,30.72423158,81.369,81.312,40.58]
[1770818115396,1.8135313,81.369,81.341,0.0302307]
[1770818115596,1.8135313,81.369,81.34,12.47595872]
[1770818115801,1.8135313,81.368,81.34,12.47595872]
[1770818116200,0.2,81.37,81.35,12.47595872]
[1770818117288,0.2,81.37,81.35,24.76843315]
[1770818118392,0.2,81.37,81.35,12.47595872]
[1770818118596,12.48957246,81.37,81.35,12.47595872]
[1770818118979,12.48957246,81.37,81.347,40.62]
[1770818119196,1.8135313,81.369,81.341,12.29385385]
[1770818119505,1.8135313,81.369,81.34,53.11595872]
[1770818119689,1.8135313,81.369,81.341,12.29392311]
[1770818120287,0.2,81.37,81.35,12.47595872]
[1770818120890,0.2,81.37,81.35,4.6471395]
[1770818121494,0.2,81.37,81.351,12.29241189]
[1770818122286,0.2,81.37,81.351,52.97241189]
[1770818122487,30.71043931,81.406,81.361,1.47664328]
[1770818122703,30.71043931,81.406,81.37,4.6471395]
[1770818122922,12.28365414,81.409,81.37,4.6471395]
[1770818123205,4.6471395,81.4,81.36,4.6471395]
[1770818123412,12.2851632,81.399,81.363,1.48039425]
[1770818123590,12.28365414,81.409,81.37,6.12753375]
[1770818123800,42.99309867,81.409,81.37,6.12753375]
[1770818124396,1.81509997,81.408,81.38,4.6471395]
[1770818124593,1.81509997,81.416,81.38,4.6471395]
[1770818124797,1.81509997,81.416,81.39,4.6471395]
[1770818124996,1.81509997,81.416,81.39,12.43526416]
[1770818125586,1.81509997,81.416,81.391,12.28637072]
[1770818126300,1.81509997,81.416,81.391,52.96637072]
[1770818127708,1.75655689,81.415,81.391,52.96637072]
[1770818128089,1.75655689,81.414,81.391,52.96637072]
[1770818128812,1.75655689,81.429,81.392,1.50108021]
[1770818129193,1.75655689,81.437,81.401,1.50439377]
[1770818129511,1.75655689,81.437,81.411,1.50439377]
[1770818129712,1.75655689,81.437,81.412,12.28320149]
[1770818130012,12.27837946,81.444,81.42,12.43526416]
[1770818130617,1.75655689,81.439,81.411,54.51097445]
[1770818130914,1.75655689,81.439,81.411,12.28332312]
[1770818131110,1.75655689,81.439,81.412,40.74]
[1770818131302,1.75655689,81.439,81.409,40.74]
[1770818131494,1.75655689,81.429,81.402,12.28464862]
[1770818131700,1.75655689,81.427,81.403,40.74]
[1770818132095,1.75655689,81.439,81.41,12.43526416]
[1770818132418,1.75655689,81.439,81.411,1.51408311]
[1770818132616,1.75655689,81.463,81.43,12.43526416]
[1770818133291,1.75655689,81.459,81.431,40.74]
[1770818134707,42.96381587,81.464,81.431,40.74]
[1770818134708,0.2,81.47,81.45,12.43526416]
[1770818134930,1.75655689,81.493,81.46,12.43526416]
[1770818135118,14.02754949,81.493,81.461,1.32345744]
[1770818135299,14.02754949,81.493,81.461,42.06345744]
[1770818135707,1.75655689,81.492,81.461,42.06345744]
[1770818135909,1.75655689,81.489,81.461,40.74]
[1770818136116,1.75655689,81.479,81.441,1.32664358]
[1770818136327,1.75655689,81.479,81.442,40.74]
[1770818136819,1.75655689,81.469,81.442,40.74]
[1770818137298,12.43526416,81.46,81.436,40.74]
[1770818137501,12.43526416,81.46,81.436,53.01945838]
[1770818137823,1.75655689,81.459,81.436,40.74]
[1770818138598,12.43526416,81.46,81.436,40.74]
[1770818138802,61.31910414,81.541,81.473,1.69669636]
[1770818139009,14.02559229,81.506,81.48,12.43526416]
[1770818139221,1.75655689,81.515,81.48,12.43526416]
[1770818139721,12.2690354,81.506,81.472,12.27415553]
[1770818140019,1.75655689,81.505,81.48,12.43526416]
[1770818140216,1.75655689,81.505,81.49,12.43526416]
[1770818140410,1.75655689,81.505,81.48,12.43526416]
[1770818140609,1.75655689,81.505,81.49,12.43526416]
[1770818140798,6.23744188,81.507,81.49,12.43526416]
[1770818141607,18.50632918,81.507,81.48,12.43526416]
[1770818141807,1.75655689,81.506,81.48,12.43526416]
[1770818142910,1.75655689,81.506,81.481,12.27279979]
[1770818143416,1.75655689,81.506,81.49,12.43526416]
[1770818143828,14.02565049,81.506,81.49,12.43526416]
[1770818144026,14.02565049,81.506,81.481,12.27279979]
[1770818144225,1.75655689,81.505,81.481,12.27279979]
[1770818148129,12.26933647,81.504,81.48,12.43526416]
[1770818148530,1.75655689,81.503,81.47,12.43526416]
[1770818149030,6.23744188,81.507,81.466,40.78]
[1770818149031,1.75655689,81.499,81.466,40.78]
[1770818149420,1.75655689,81.499,81.454,1.45111761]
[1770818149739,1.75655689,81.499,81.46,12.41141314]
[1770818150710,1.75655689,81.499,81.439,30.6976808]
[1770818150711,1.88763052,81.479,81.44,12.41141314]
[1770818150909,1.88763052,81.479,81.441,12.27876948]
[1770818151224,1.88763052,81.477,81.441,12.27876948]
[1770818151538,1.88763052,81.477,81.45,12.41141314]
[1770818151710,1.88763052,81.477,81.441,12.27876948]
[1770818151916,1.88763052,81.477,81.44,24.6902891]
[1770818155435,1.88763052,81.475,81.44,26.17563158]
[1770818155913,1.88763052,81.475,81.44,13.76421844]
[1770818156112,1.88763052,81.475,81.44,26.17563158]
[1770818157210,12.27385423,81.474,81.44,26.17563158]
[1770818157535,1.88763052,81.469,81.422,1.49461179]
[1770818157707,1.88763052,81.469,81.431,1.49915125]
[1770818157912,12.27385423,81.474,81.441,12.27882761]
[1770818158225,1.88763052,81.473,81.44,24.69035522]
[1770818158614,1.88763052,81.473,81.45,12.41141314]
[1770818158814,1.88763052,81.473,81.441,1.49915125]
[1770818159440,12.41141314,81.48,81.435,30.69906582]
[1770818159441,12.27415553,81.472,81.451,1.50363933]
[1770818160330,1.88763052,81.471,81.44,12.41141314]
[1770818160627,1.88763052,81.471,81.396,49.14217994]
[1770818160628,1.88763052,81.479,81.442,1.50808913]
[1770818160828,12.41141314,81.5,81.461,1.51248719]
[1770818161013,1.88763052,81.504,81.48,12.41141314]
[1770818161208,1.88763052,81.504,81.48,53.39141314]
[1770818161414,6.38094302,81.559,81.491,1.71631632]
[1770818161610,12.41141314,81.55,81.509,1.71631632]
[1770818161832,12.41141314,81.55,81.51,12.41141314]
[1770818162041,12.41141314,81.54,81.51,12.41141314]
[1770818162330,12.26211496,81.552,81.521,1.71631632]
[1770818163333,14.14974548,81.552,81.521,1.71631632]
[1770818163539,1.88763052,81.551,81.521,1.71631632]
[1770818164113,12.26211496,81.552,81.511,41.66]
[1770818164114,1.88763052,81.549,81.512,1.71631632]
[1770818164419,1.88763052,81.539,81.504,1.71631632]
[1770818164626,52.92,81.556,81.52,12.41141314]
[1770818164826,1.88763052,81.567,81.54,12.41141314]
[1770818165220,1.88763052,81.567,81.532,1.71631632]
[1770818165540,12.26084726,81.561,81.54,12.41141314]
[1770818165718,12.26131943,81.558,81.54,12.41141314]
[1770818165920,12.26065401,81.562,81.534,1.71631632]
[1770818166119,1.88763052,81.567,81.534,1.71631632]
[1770818166522,1.88763052,81.56,81.53,12.41141314]
[1770818166720,12.26211496,81.552,81.525,1.71631632]
[1770818166925,1.88763052,81.551,81.525,1.71631632]
[1770818167133,1.88763052,81.561,81.532,1.71631632]
[1770818167517,1.88763052,81.561,81.54,12.41141314]
[1770818167733,12.26024844,81.565,81.54,12.41141314]
[1770818168143,12.26211496,81.552,81.532,1.71631632]
[1770818168325,30.64963017,81.568,81.532,1.71631632]
[1770818168326,1.88763052,81.559,81.532,13.98129583]
[1770818168520,12.26211496,81.552,81.532,1.71631632]
[1770818168842,12.26154432,81.556,81.532,1.71631632]
[1770818169142,12.26211496,81.552,81.532,1.71631632]
[1770818169336,12.26211496,81.552,81.527,12.26575491]
[1770818169644,1.88763052,81.559,81.515,41.64]
[1770818169645,1.88763052,81.547,81.519,12.26698702]
[1770818169939,1.88763052,81.547,81.516,1.71631632]
[1770818170722,1.88763052,81.539,81.51,12.41141314]
[1770818170936,1.88763052,81.539,81.507,1.71631632]
[1770818171139,1.88763052,81.529,81.498,1.71631632]
[1770818171330,1.88763052,81.529,81.499,12.27001089]
[1770818171531,1.88763052,81.529,81.502,13.98581176]
[1770818171726,12.26572465,81.528,81.502,1.71631632]
[1770818173647,14.15335517,81.528,81.502,1.71631632]
[1770818173845,14.15335517,81.528,81.502,13.98594284]
[1770818174624,12.41141314,81.52,81.494,1.71631632]
[1770818174820,12.41141314,81.52,81.485,41.66]
[1770818174821,1.88763052,81.519,81.485,41.66]
[1770818175030,1.88763052,81.519,81.486,1.71631632]
[1770818176135,1.88763052,81.517,81.486,1.71631632]
[1770818176331,1.88763052,81.517,81.487,12.27189613]
[1770818176849,1.88763052,81.517,81.486,1.71631632]
[1770818177026,1.88763052,81.526,81.5,12.41141314]
[1770818177226,1.88763052,81.526,81.501,1.71631632]
[1770818177435,14.15200129,81.537,81.501,1.71631632]
[1770818178441,14.15200129,81.537,81.503,1.71631632]
[1770818178845,1.88763052,81.536,81.503,1.71631632]
[1770818181245,1.93789387,81.529,81.503,1.71631632]
[1770818182330,42.92635064,81.535,81.51,12.41141314]
[1770818182548,1.93789387,81.534,81.51,12.41141314]
[1770818182729,12.26467161,81.535,81.511,1.81826973]
[1770818183250,12.41141314,81.54,81.511,1.81826973]
[1770818183251,12.26406995,81.539,81.511,1.81826973]
[1770818183450,14.20196382,81.539,81.511,1.81826973]
[1770818183638,1.93789387,81.538,81.511,1.81826973]
[1770818186054,1.93789387,81.529,81.499,1.81826973]
[1770818186256,1.93789387,81.529,81.501,1.85718912]
[1770818186457,1.93789387,81.529,81.504,1.85718912]
[1770818188044,12.26572465,81.528,81.504,1.85718912]
[1770818188239,1.80890207,81.527,81.504,1.85718912]
[1770818190252,1.80890207,81.525,81.504,1.85718912]
[1770818190554,1.80890207,81.525,81.5,12.41141314]
[1770818190765,1.80890207,81.519,81.484,1.85718912]
[1770818192266,1.80890207,81.509,81.484,1.85718912]
[1770818192757,1.80890207,81.509,81.476,1.85718912]
[1770818194169,52.78,81.513,81.481,1.85718912]
[1770818194346,30.66485359,81.527,81.45,98.2194249]
[1770818194347,1.80890207,81.539,81.501,1.85718912]
[1770818195246,1.80890207,81.529,81.501,1.85718912]
[1770818196047,1.80890207,81.519,81.49,1.85718912]
[1770818196249,1.80890207,81.517,81.491,12.27129376]
[1770818196559,1.80890207,81.509,81.478,53.79312998]
[1770818196755,44.74420469,81.518,81.485,1.85718912]
[1770818196959,1.80890207,81.517,81.485,1.85718912]
[1770818197655,1.80890207,81.517,81.486,1.85718912]
[1770818198055,1.80890207,81.509,81.478,43.37718912]
[1770818198257,1.80890207,81.509,81.48,12.27287052]
[1770818198457,1.80890207,81.507,81.48,24.68428366]
[1770818199052,1.80890207,81.519,81.49,12.41141314]
[1770818199369,1.80890207,81.519,81.491,1.85718912]
[1770818199563,1.80890207,81.519,81.481,1.85718912]
[1770818201365,1.80890207,81.517,81.483,1.85718912]
[1770818203870,1.80890207,81.509,81.483,1.85718912]
[1770818204059,1.80890207,81.509,81.481,12.27269304]
[1770818204255,1.80890207,81.499,81.478,41.54]
[1770818204454,1.80890207,81.499,81.462,1.85718912]
[1770818204660,1.80890207,81.499,81.469,1.85718912]
[1770818206273,1.80890207,81.497,81.469,1.85718912]
[1770818207172,12.26975814,81.502,81.471,1.85718912]
[1770818207777,65.06887618,81.508,81.481,1.85718912]
[1770818208073,12.26825576,81.512,81.481,1.85718912]
[1770818208253,5.36086188,81.551,81.443,98.22706228]
[1770818208254,1.80890207,81.526,81.492,1.85718912]
[1770818208569,1.80890207,81.533,81.501,1.85718912]
[1770818209070,12.26435439,81.538,81.511,1.85718912]
[1770818210373,12.26435439,81.538,81.513,1.89885803]
[1770818210873,2.01477543,81.537,81.513,1.89885803]
[1770818212358,2.01477543,81.537,81.514,14.16668932]
[1770818213379,12.26452119,81.536,81.514,14.16668932]
[1770818214079,2.01477543,81.535,81.504,1.89885803]
[1770818214462,2.01477543,81.533,81.507,1.89885803]
[1770818217264,2.01477543,81.549,81.511,1.89885803]
[1770818217476,2.01477543,81.551,81.521,1.89885803]
[1770818218773,2.01477543,81.551,81.53,12.40112706]
[1770818219085,12.26211496,81.552,81.531,1.89885803]
[1770818219381,0.2504715,81.553,81.532,14.16398092]
[1770818219988,0.2504715,81.553,81.533,1.89885803]
[1770818221667,0.1,81.57,81.542,1.89885803]
[1770818223066,0.1,81.58,81.561,1.89885803]
[1770818223265,0.1,81.58,81.57,4.62652302]
[1770818223572,61.26088432,81.619,81.57,4.62652302]
[1770818223573,2.01477543,81.603,81.572,1.89885803]
[1770818223770,0.1,81.61,81.59,4.62652302]
[1770818224088,0.1,81.61,81.591,1.89885803]
[1770818224265,11.3524271,81.617,81.591,1.89885803]
[1770818224875,2.01477543,81.616,81.591,1.89885803]
[1770818225482,2.01477543,81.609,81.58,12.37553164]
[1770818225682,2.01477543,81.609,81.582,1.89885803]
[1770818226103,12.25370061,81.608,81.582,1.89885803]
[1770818226669,12.25370061,81.608,81.582,43.47885803]
[1770818227088,2.01477543,81.607,81.583,1.89885803]
[1770818227591,12.25400093,81.606,81.583,1.89885803]
[1770818227791,12.25400093,81.606,81.583,43.47885803]
[1770818228293,2.01477543,81.618,81.591,1.89885803]
[1770818228990,12.25054821,81.629,81.584,12.25730535]
[1770818228991,2.01477543,81.627,81.601,1.89885803]
[1770818229491,2.01477543,81.627,81.601,43.47885803]
[1770818229993,12.25099845,81.626,81.602,1.89885803]
[1770818231389,0.1,81.63,81.611,1.89885803]
[1770818231790,0.1,81.63,81.612,43.49885803]
[1770818231993,0.1,81.63,81.613,1.89885803]
[1770818232574,0.1,81.63,81.612,41.6]
[1770818233096,0.1,81.63,81.602,12.25458478]
[1770818233097,2.01477543,81.619,81.588,12.25666011]
[1770818233319,2.01477543,81.619,81.571,12.25917153]
[1770818233607,2.01477543,81.589,81.558,12.26107913]
[1770818233782,2.01477543,81.601,81.572,12.25910851]
[1770818233981,12.25490196,81.6,81.573,1.89885803]
[1770818234295,2.01477543,81.6,81.574,1.89885803]
[1770818234708,2.01477543,81.609,81.581,1.89885803]
[1770818234994,12.25370061,81.608,81.581,1.89885803]
[1770818235195,2.01477543,81.607,81.581,1.89885803]
[1770818236178,2.01477543,81.599,81.577,41.62]
[1770818236603,12.25400093,81.606,81.577,41.62]
[1770818236777,2.01477543,81.605,81.58,12.37553164]
[1770818236978,2.01477543,81.605,81.577,43.51885803]
[1770818237173,2.01477543,81.599,81.572,12.25903098]
[1770818237400,2.01477543,81.599,81.573,41.62]
[1770818237986,2.01477543,81.579,81.55,12.37553164]
[1770818238203,2.01477543,81.579,81.551,14.16112336]
[1770818239203,2.01477543,81.578,81.552,1.89885803]
[1770818239704,2.01477543,81.578,81.546,41.62]
[1770818239906,2.01477543,81.578,81.552,1.89885803]
[1770818240104,2.01477543,81.577,81.552,1.89885803]
[1770818240406,2.01477543,81.577,81.553,12.26196461]
[1770818241131,12.25796655,81.58,81.554,2.08217737]
[1770818241406,24.63349819,81.58,81.554,2.08217737]
[1770818243107,12.25640397,81.59,81.56,12.37553164]
[1770818243313,2.05278756,81.599,81.561,2.08217737]
[1770818243618,2.05278756,81.599,81.571,2.08217737]
[1770818244013,12.37553164,81.59,81.555,12.2616639]
[1770818244313,2.05278756,81.589,81.556,2.08217737]
[1770818246413,12.37553164,81.58,81.55,24.63785071]
[1770818246609,1.98156377,81.579,81.55,12.26231907]
[1770818247614,1.98156377,81.577,81.55,12.26231907]
[1770818248410,1.98156377,81.577,81.549,41.66]
[1770818248629,1.98156377,81.577,81.538,30.66043873]
[1770818248630,1.98156377,81.559,81.529,1.97750417]
[1770818248811,1.98156377,81.559,81.54,12.26382165]
[1770818249921,1.98156377,81.559,81.531,1.97750417]
[1770818250118,1.98156377,81.569,81.531,1.97750417]
[1770818250509,12.37553164,81.58,81.541,1.97750417]
[1770818250708,12.2580566,81.579,81.541,1.97750417]
[1770818251311,1.98156377,81.578,81.541,1.97750417]
[1770818252123,1.98156377,81.578,81.542,12.26361874]
[1770818252323,1.98156377,81.578,81.543,1.97750417]
[1770818252707,12.25835713,81.577,81.543,1.97750417]
[1770818254100,14.2399209,81.577,81.545,1.97750417]
[1770818254738,164.0,81.632,81.571,1.97750417]
[1770818255022,12.25054821,81.629,81.591,1.97750417]
[1770818255195,12.25054821,81.629,81.592,1.97750417]
[1770818255396,42.87691874,81.629,81.592,1.97750417]
[1770818256023,12.25054821,81.629,81.6,12.37553164]
[1770818256418,0.1,81.63,81.599,1.97750417]
[1770818256605,1.98156377,81.629,81.599,1.97750417]
[1770818257818,1.98156377,81.629,81.593,12.25589879]
[1770818258020,1.98156377,81.627,81.593,14.23340296]
[1770818259224,12.25099845,81.626,81.593,14.23340296]
[1770818259427,1.98156377,81.625,81.594,1.97750417]
[1770818259925,1.98156377,81.619,81.58,24.63339232]
[1770818260226,1.98156377,81.619,81.525,5.36086188]
[1770818260227,1.98156377,81.599,81.559,1.97750417]
[1770818260422,1.98156377,81.598,81.578,12.25807878]
[1770818260604,1.98156377,81.598,81.574,12.25871353]
[1770818261218,1.98156377,81.598,81.571,30.64804204]
[1770818261418,1.98156377,81.598,81.572,1.97750417]
[1770818261622,12.37553164,81.61,81.581,1.97750417]
[1770818261623,12.25343109,81.61,81.581,1.97750417]
[1770818262326,1.98156377,81.609,81.574,1.97750417]
[1770818262524,1.98156377,81.609,81.58,12.37553164]
[1770818262714,1.98156377,81.609,81.58,14.35303581]
[1770818263110,1.98156377,81.609,81.581,1.97750417]
[1770818263307,1.98156377,81.616,81.591,1.97750417]
[1770818263638,1.98156377,81.623,81.6,12.37553164]
[1770818263925,1.98156377,81.623,81.591,1.97750417]
[1770818266815,1.98156377,81.623,81.593,1.97750417]
[1770818267113,12.25159883,81.622,81.593,1.97750417]
[1770818267312,1.98156377,81.621,81.593,1.97750417]
[1770818267614,1.98156377,81.621,81.592,12.25610353]
[1770818267615,0.1,81.63,81.601,1.97750417]
[1770818268106,0.1,81.63,81.61,12.37553164]
[1770818268313,0.1,81.63,81.611,1.97750417]
[1770818268915,12.47553164,81.65,81.603,41.82]
[1770818268916,0.1,81.67,81.622,1.97750417]
[1770818269113,0.1,81.67,81.65,12.36423976]
[1770818269919,0.1,81.67,81.66,12.36423976]
[1770818270328,0.1,81.67,81.65,12.36423976]
[1770818270735,0.1,81.68,81.639,41.82]
[1770818270914,0.1,81.68,81.65,12.36423976]
[1770818271313,0.1,81.68,81.651,1.94625114]
[1770818272727,0.1,81.68,81.66,12.36423976]
[1770818273533,0.1,81.68,81.653,1.94625114]
[1770818273735,0.1,81.68,81.652,12.24709743]
[1770818273736,2.12973362,81.68,81.652,12.24709743]
[1770818273937,2.02973362,81.679,81.647,1.94625114]
[1770818274124,2.02973362,81.669,81.637,12.24933067]
[1770818274308,2.02973362,81.659,81.637,12.24933067]
[1770818274713,2.02973362,81.659,81.631,1.94625114]
[1770818274912,2.02973362,81.659,81.631,14.19645382]
[1770818275537,2.02973362,81.657,81.628,1.94625114]
[1770818275913,2.02973362,81.657,81.631,12.25014929]
[1770818276117,12.24556869,81.663,81.632,1.94625114]
[1770818276433,2.02973362,81.676,81.641,1.94625114]
[1770818276934,2.02973362,81.672,81.641,1.94625114]
[1770818277522,2.02973362,81.676,81.643,1.94625114]
[1770818277721,2.02973362,81.675,81.643,1.94625114]
[1770818278238,2.02973362,81.669,81.635,1.94625114]
[1770818278420,12.24352692,81.676,81.651,1.94625114]
[1770818278919,2.02973362,81.679,81.651,1.94625114]
[1770818279636,0.1,81.68,81.653,1.94625114]
[1770818281037,0.1,81.68,81.66,12.36423976]
[1770818281222,0.1,81.68,81.661,1.94625114]
[1770818281628,0.1,81.69,81.671,1.94625114]
[1770818281843,0.1,81.69,81.68,14.3104909]
[1770818282218,0.1,81.69,81.681,1.94625114]
[1770818282740,0.1,81.69,81.662,41.88]
[1770818282741,0.1,81.69,81.674,1.94625114]
[1770818283446,0.1,81.69,81.675,12.2436486]
[1770818284329,2.02973362,81.708,81.681,1.94625114]
[1770818284531,0.1,81.71,81.69,12.36423976]
[1770818284737,12.23855389,81.709,81.689,1.94625114]
[1770818284941,14.36816824,81.71,81.681,1.94625114]
[1770818285644,14.36816824,81.71,81.683,1.94625114]
[1770818286347,2.02973362,81.709,81.683,1.94625114]
[1770818286538,2.02973362,81.709,81.68,24.60707254]
[1770818286926,2.02973362,81.699,81.67,12.36423976]
[1770818287242,2.02973362,81.699,81.67,14.3104909]
[1770818287629,12.23982756,81.701,81.675,1.94625114]
[1770818288552,43.06025004,81.71,81.674,12.24369342]
[1770818288553,0.1,81.71,81.681,1.94625114]
[1770818288749,14.26828751,81.709,81.681,1.94625114]
[1770818288939,2.02973362,81.708,81.681,1.94625114]
[1770818289750,0.1,81.71,81.69,12.36423976]
[1770818289936,0.1,81.72,81.71,12.36423976]
[1770818290250,0.1,81.72,81.711,1.94625114]
[1770818290433,12.23406207,81.739,81.711,1.94625114]
[1770818290752,2.02973362,81.738,81.711,1.94625114]
[1770818291651,2.02973362,81.729,81.691,1.94625114]
[1770818291834,2.02973362,81.727,81.696,14.18675251]
[1770818292041,2.02973362,81.719,81.694,41.96]
[1770818292246,2.02973362,81.719,81.693,12.24083219]
[1770818292552,2.02973362,81.719,81.693,14.18708333]
[1770818293057,2.02973362,81.709,81.669,1.94625114]
[1770818293231,12.36423976,81.7,81.674,1.94625114]
[1770818293546,42.82498042,81.728,81.663,41.98]
[1770818293547,2.02973362,81.719,81.687,1.94625114]
[1770818293757,2.02973362,81.719,81.69,14.3104909]
[1770818293927,12.237206,81.718,81.691,1.94625114]
[1770818294335,2.02973362,81.72,81.692,1.94625114]
[1770818294631,2.02973362,81.719,81.692,1.94625114]
[1770818295328,2.02973362,81.718,81.692,1.94625114]
[1770818295935,2.02973362,81.716,81.686,41.98]
[1770818296137,2.02973362,81.716,81.687,12.24184998]
[1770818296754,2.02973362,81.716,81.687,14.18810112]
[1770818297445,2.02973362,81.716,81.687,1.94625114]
[1770818298046,2.02973362,81.716,81.69,12.36423976]
[1770818298245,2.02973362,81.716,81.691,1.94625114]
[1770818299239,12.23765526,81.715,81.691,1.94625114]
[1770818299846,2.02973362,81.716,81.691,1.94625114]